[Event "Titled Tuesday Blitz May 31 Early 2022"]
[White "Vinod, Kumar Sharma"]
[Black "Kvaloy, Aksel Bu"]
[WhiteFideId "5013518"]
[BlackFideId "1528815"]
[WhiteElo "2154"]
[BlackElo "2053"]
[Result "0-1"]
[Round "08"]
[TimeControl "180+1"]
[Date "2022.06.01"]
[WhiteClock "0:00:01"]
[BlackClock "0:00:02"]

1. e4 {[%clk 0:02:57]}  c5 {[%clk 0:02:54]} 2. Nf3 {[%clk 0:02:56]}  d6 {[%clk 0:02:54]} 3. d4 {[%clk 0:02:56]}  cxd4 {[%clk 0:02:54]} 4. Nxd4 {[%clk 0:02:57]}  Nf6 {[%clk 0:02:54]} 5. Nc3 {[%clk 0:02:57]}  a6 {[%clk 0:02:55]} 6. h3 {[%clk 0:02:57]}  b5 {[%clk 0:02:50]} 7. g4 {[%clk 0:02:53]}  Bb7 {[%clk 0:02:40]} 8. Bg2 {[%clk 0:02:51]}  Nc6 {[%clk 0:02:31]} 9. Be3 {[%clk 0:02:38]}  e6 {[%clk 0:02:14]} 10. g5 {[%clk 0:02:30]}  Nd7 {[%clk 0:02:13]} 11. O-O {[%clk 0:02:17]}  Be7 {[%clk 0:02:11]} 12. Nxc6 {[%clk 0:02:06]}  Bxc6 {[%clk 0:02:09]} 13. f4 {[%clk 0:02:04]}  Nc5 {[%clk 0:02:07]} 14. Qg4 {[%clk 0:01:59]}  b4 {[%clk 0:01:47]} 15. Ne2 {[%clk 0:01:53]}  Bxe4 {[%clk 0:01:40]} 16. Bxe4 {[%clk 0:01:50]}  Nxe4 {[%clk 0:01:41]} 17. f5 {[%clk 0:01:43]}  Nxg5 {[%clk 0:01:22]} 18. h4 {[%clk 0:01:24]}  exf5 {[%clk 0:01:00]} 19. Qxf5 {[%clk 0:01:23]}  Ne6 {[%clk 0:00:48]} 20. Qxf7+ {[%clk 0:01:21]}  Kd7 {[%clk 0:00:49]} 21. Nf4 {[%clk 0:01:12]}  Nxf4 {[%clk 0:00:42]} 22. Qxf4 {[%clk 0:01:04]}  Qc8 {[%clk 0:00:14]} 23. Qe4 {[%clk 0:00:40]}  Qc6 {[%clk 0:00:10]} 24. Qg4+ {[%clk 0:00:33]}  Kc7 {[%clk 0:00:11]} 25. Rf7 {[%clk 0:00:23]}  Rae8 {[%clk 0:00:11]} 26. Raf1 {[%clk 0:00:18]}  Kd8 {[%clk 0:00:07]} 27. Qxb4 {[%clk 0:00:11]}  Rhf8 {[%clk 0:00:06]} 28. Bb6+ {[%clk 0:00:06]}  Kc8 {[%clk 0:00:05]} 29. R1f4 {[%clk 0:00:02]}  Rxf7 {[%clk 0:00:05]} 30. Rc4 {[%clk 0:00:02]}  Kb7 {[%clk 0:00:02]} 31. Rxc6 {[%clk 0:00:02]}  Kxc6 {[%clk 0:00:03]} 32. Qc4+ {[%clk 0:00:03]}  Kxb6 {[%clk 0:00:03]} 33. Qxf7 {[%clk 0:00:03]}  Rc8 {[%clk 0:00:03]} 34. Qxe7 {[%clk 0:00:03]}  Rxc2 {[%clk 0:00:03]} 35. Qxd6+ {[%clk 0:00:02]}  Kb7 {[%clk 0:00:02]} 36. Qd5+ {[%clk 0:00:02]}  Kb6 {[%clk 0:00:02]} 37. Qd4+ {[%clk 0:00:01]}  Kc7 {[%clk 0:00:03]} 38. Qxg7+ {[%clk 0:00:01]}  Kb6 {[%clk 0:00:03]} 39. Qxh7 {[%clk 0:00:01]}  Rxb2 {[%clk 0:00:02]} 0-1


[Site "https://www.chess.com"]

[Event "Titled Tuesday Blitz May 31 Early 2022"]
[White "Yilmaz, Mustafa"]
[Black "Oparin, Grigoriy"]
[WhiteFideId "6302718"]
[BlackFideId "24125890"]
[WhiteElo "2568"]
[BlackElo "2665"]
[Result "1/2-1/2"]
[Round "08"]
[TimeControl "180+1"]
[Date "2022.05.31"]
[WhiteClock "0:00:05"]
[BlackClock "0:00:29"]

1. d4 {[%clk 0:03:00]}  Nf6 {[%clk 0:03:00]} 2. c4 {[%clk 0:03:01]}  e6 {[%clk 0:03:00]} 3. Nf3 {[%clk 0:03:01]}  d5 {[%clk 0:03:00]} 4. Nc3 {[%clk 0:03:00]}  c5 {[%clk 0:03:00]} 5. cxd5 {[%clk 0:03:00]}  cxd4 {[%clk 0:03:00]} 6. Qxd4 {[%clk 0:02:58]}  exd5 {[%clk 0:02:57]} 7. Bg5 {[%clk 0:02:43]}  Be7 {[%clk 0:02:57]} 8. e3 {[%clk 0:02:43]}  O-O {[%clk 0:02:57]} 9. Rd1 {[%clk 0:02:42]}  Be6 {[%clk 0:02:56]} 10. Qa4 {[%clk 0:02:40]}  h6 {[%clk 0:02:55]} 11. Bh4 {[%clk 0:02:37]}  Qb6 {[%clk 0:02:54]} 12. Qb5 {[%clk 0:02:36]}  Rd8 {[%clk 0:02:45]} 13. Qxb6 {[%clk 0:02:30]}  axb6 {[%clk 0:02:46]} 14. a3 {[%clk 0:02:26]}  Nc6 {[%clk 0:02:43]} 15. Bd3 {[%clk 0:02:16]}  Bg4 {[%clk 0:02:33]} 16. Be2 {[%clk 0:02:00]}  Bxf3 {[%clk 0:02:08]} 17. Bxf3 {[%clk 0:01:56]}  d4 {[%clk 0:02:09]} 18. exd4 {[%clk 0:01:51]}  Nxd4 {[%clk 0:02:09]} 19. Bxb7 {[%clk 0:01:36]}  Ra7 {[%clk 0:01:53]} 20. Bxf6 {[%clk 0:01:15]}  Bxf6 {[%clk 0:01:50]} 21. Be4 {[%clk 0:01:15]}  Re8 {[%clk 0:01:30]} 22. O-O {[%clk 0:00:49]}  Ne2+ {[%clk 0:01:30]} 23. Nxe2 {[%clk 0:00:49]}  Rxe4 {[%clk 0:01:30]} 24. Rd2 {[%clk 0:00:33]}  Rc7 {[%clk 0:01:25]} 25. g3 {[%clk 0:00:31]}  Rec4 {[%clk 0:01:20]} 26. b4 {[%clk 0:00:21]}  Rc2 {[%clk 0:01:15]} 27. Rfd1 {[%clk 0:00:19]}  Bb2 {[%clk 0:01:11]} 28. a4 {[%clk 0:00:12]}  Ba3 {[%clk 0:01:07]} 29. a5 {[%clk 0:00:12]}  bxa5 {[%clk 0:00:53]} 30. bxa5 {[%clk 0:00:13]}  Rxd2 {[%clk 0:00:29]} 31. Rxd2 {[%clk 0:00:13]}  Ra7 {[%clk 0:00:30]} 32. Ra2 {[%clk 0:00:05]}  Rxa5 {[%clk 0:00:29]} 33. Nc3 {[%clk 0:00:06]}  Bb4 {[%clk 0:00:29]} 34. Rxa5 {[%clk 0:00:05]} 1/2-1/2


[Site "https://www.chess.com"]

[Event "Titled Tuesday Blitz May 31 Early 2022"]
[White "Acosta Cruz, Oscar Yosimar"]
[Black "Ciuffoletti, Paolo"]
[WhiteFideId "5111269"]
[BlackFideId "807630"]
[WhiteElo "2147"]
[BlackElo "2143"]
[Result "1-0"]
[Round "09"]
[TimeControl "180+1"]
[Date "2022.06.01"]
[WhiteClock "0:00:06"]
[BlackClock "0:00:01"]

1. e4 {[%clk 0:03:00]}  c5 {[%clk 0:02:59]} 2. Nf3 {[%clk 0:02:59]}  Nc6 {[%clk 0:02:59]} 3. d4 {[%clk 0:02:56]}  cxd4 {[%clk 0:02:59]} 4. Nxd4 {[%clk 0:02:56]}  Nf6 {[%clk 0:02:59]} 5. Nc3 {[%clk 0:02:56]}  e5 {[%clk 0:02:59]} 6. Ndb5 {[%clk 0:02:54]}  d6 {[%clk 0:03:00]} 7. Nd5 {[%clk 0:02:53]}  Nxd5 {[%clk 0:02:59]} 8. exd5 {[%clk 0:02:53]}  Nb8 {[%clk 0:02:59]} 9. c4 {[%clk 0:02:23]}  a6 {[%clk 0:02:53]} 10. Nc3 {[%clk 0:02:19]}  Be7 {[%clk 0:02:52]} 11. Be2 {[%clk 0:02:13]}  O-O {[%clk 0:02:52]} 12. O-O {[%clk 0:02:09]}  f5 {[%clk 0:02:51]} 13. f4 {[%clk 0:02:04]}  Bf6 {[%clk 0:02:47]} 14. Kh1 {[%clk 0:01:54]}  Nd7 {[%clk 0:02:45]} 15. Be3 {[%clk 0:01:44]}  exf4 {[%clk 0:02:37]} 16. Bxf4 {[%clk 0:01:41]}  Be5 {[%clk 0:02:36]} 17. Qd2 {[%clk 0:01:33]}  Qf6 {[%clk 0:02:24]} 18. Rac1 {[%clk 0:01:28]}  Bxf4 {[%clk 0:02:09]} 19. Rxf4 {[%clk 0:01:23]}  Ne5 {[%clk 0:02:06]} 20. Rff1 {[%clk 0:01:17]}  Bd7 {[%clk 0:01:54]} 21. b3 {[%clk 0:00:59]}  g5 {[%clk 0:01:41]} 22. Bd3 {[%clk 0:00:51]}  Rae8 {[%clk 0:01:26]} 23. Rce1 {[%clk 0:00:40]}  Qh6 {[%clk 0:01:03]} 24. Ne2 {[%clk 0:00:35]}  f4 {[%clk 0:00:56]} 25. Nd4 {[%clk 0:00:33]}  Ng4 {[%clk 0:00:48]} 26. h3 {[%clk 0:00:29]}  Ne3 {[%clk 0:00:46]} 27. Rf3 {[%clk 0:00:23]}  Rf6 {[%clk 0:00:27]} 28. Rfxe3 {[%clk 0:00:20]}  fxe3 {[%clk 0:00:26]} 29. Rxe3 {[%clk 0:00:20]}  Rxe3 {[%clk 0:00:21]} 30. Qxe3 {[%clk 0:00:21]}  g4 {[%clk 0:00:18]} 31. Qg3 {[%clk 0:00:17]}  Qf4 {[%clk 0:00:14]} 32. Qxf4 {[%clk 0:00:17]}  Rxf4 {[%clk 0:00:14]} 33. Ne2 {[%clk 0:00:15]}  Rf1+ {[%clk 0:00:11]} 34. Kh2 {[%clk 0:00:15]}  gxh3 {[%clk 0:00:11]} 35. gxh3 {[%clk 0:00:15]}  Rd1 {[%clk 0:00:11]} 36. Be4 {[%clk 0:00:15]}  Rd2 {[%clk 0:00:10]} 37. Bf3 {[%clk 0:00:14]}  Bf5 {[%clk 0:00:10]} 38. Kg3 {[%clk 0:00:15]}  Rxa2 {[%clk 0:00:10]} 39. Nd4 {[%clk 0:00:15]}  Bg6 {[%clk 0:00:07]} 40. Kf4 {[%clk 0:00:14]}  Rb2 {[%clk 0:00:06]} 41. Bg4 {[%clk 0:00:12]}  Bc2 {[%clk 0:00:05]} 42. Be6+ {[%clk 0:00:09]}  Kf8 {[%clk 0:00:05]} 43. Nf5 {[%clk 0:00:09]}  Bxb3 {[%clk 0:00:05]} 44. Nxd6 {[%clk 0:00:09]}  Bc2 {[%clk 0:00:04]} 45. c5 {[%clk 0:00:08]}  a5 {[%clk 0:00:02]} 46. c6 {[%clk 0:00:08]}  bxc6 {[%clk 0:00:02]} 47. dxc6 {[%clk 0:00:09]}  Ba4 {[%clk 0:00:01]} 48. c7 {[%clk 0:00:08]}  Rc2 {[%clk 0:00:02]} 49. c8=Q+ {[%clk 0:00:08]}  Rxc8 {[%clk 0:00:02]} 50. Bxc8 {[%clk 0:00:08]}  Ke7 {[%clk 0:00:02]} 51. Nc4 {[%clk 0:00:08]}  Bb3 {[%clk 0:00:02]} 52. Nxa5 {[%clk 0:00:07]}  Bd5 {[%clk 0:00:01]} 53. h4 {[%clk 0:00:07]}  Kf6 {[%clk 0:00:01]} 54. Bb7 {[%clk 0:00:06]} 1-0


[Site "https://www.chess.com"]

[Event "Titled Tuesday Blitz May 31 Early 2022"]
[White "Agibileg, Uurtsaikh"]
[Black "Indjic, Aleksandar"]
[WhiteFideId "4901606"]
[BlackFideId "911925"]
[WhiteElo "2205"]
[BlackElo "2616"]
[Result "1-0"]
[Round "09"]
[TimeControl "180+1"]
[Date "2022.05.31"]
[WhiteClock "0:00:35"]
[BlackClock "0:00:13"]

1. d4 {[%clk 0:03:00]}  Nf6 {[%clk 0:03:00]} 2. c4 {[%clk 0:02:58]}  c5 {[%clk 0:03:00]} 3. d5 {[%clk 0:02:57]}  e6 {[%clk 0:03:01]} 4. Nc3 {[%clk 0:02:56]}  exd5 {[%clk 0:03:01]} 5. cxd5 {[%clk 0:02:57]}  d6 {[%clk 0:03:01]} 6. e4 {[%clk 0:02:58]}  g6 {[%clk 0:03:01]} 7. Bd3 {[%clk 0:02:56]}  Bg7 {[%clk 0:03:02]} 8. h3 {[%clk 0:02:57]}  O-O {[%clk 0:03:02]} 9. Nf3 {[%clk 0:02:57]}  Re8 {[%clk 0:03:02]} 10. O-O {[%clk 0:02:58]}  Nbd7 {[%clk 0:03:02]} 11. Bf4 {[%clk 0:02:57]}  c4 {[%clk 0:03:02]} 12. Bc2 {[%clk 0:02:46]}  Nc5 {[%clk 0:03:02]} 13. Re1 {[%clk 0:02:46]}  b5 {[%clk 0:03:02]} 14. Nxb5 {[%clk 0:02:36]}  Nfxe4 {[%clk 0:03:01]} 15. Nfd4 {[%clk 0:02:30]}  Bb7 {[%clk 0:02:46]} 16. Nc6 {[%clk 0:01:50]}  Bxc6 {[%clk 0:02:06]} 17. dxc6 {[%clk 0:01:49]}  Qb6 {[%clk 0:01:47]} 18. Nxd6 {[%clk 0:01:46]}  Nxf2 {[%clk 0:01:35]} 19. Rxe8+ {[%clk 0:01:29]}  Rxe8 {[%clk 0:01:34]} 20. Qf3 {[%clk 0:01:11]}  Ncd3 {[%clk 0:00:39]} 21. Nxe8 {[%clk 0:01:05]}  Nxh3+ {[%clk 0:00:37]} 22. Kh2 {[%clk 0:01:01]}  Nhxf4 {[%clk 0:00:35]} 23. c7 {[%clk 0:00:57]}  Be5 {[%clk 0:00:23]} 24. c8=Q {[%clk 0:00:52]}  Nh5+ {[%clk 0:00:20]} 25. g3 {[%clk 0:00:43]}  Bxg3+ {[%clk 0:00:20]} 26. Kh1 {[%clk 0:00:37]}  Bf4 {[%clk 0:00:13]} 27. Nf6+ {[%clk 0:00:35]}  Kg7 {[%clk 0:00:13]} 1-0


[Site "https://www.chess.com"]

[Event "Titled Tuesday Blitz May 31 Early 2022"]
[White "Alinasab, Mobina"]
[Black "Stankovic, Ivan G"]
[WhiteFideId "12528897"]
[BlackFideId "902837"]
[WhiteElo "2031"]
[BlackElo "2195"]
[Result "1-0"]
[Round "09"]
[TimeControl "180+1"]
[Date "2022.06.01"]
[WhiteClock "0:00:43"]
[BlackClock "0:00:02"]

1. e4 {[%clk 0:03:00]}  c5 {[%clk 0:02:59]} 2. Nf3 {[%clk 0:03:00]}  Nc6 {[%clk 0:03:00]} 3. d4 {[%clk 0:03:00]}  cxd4 {[%clk 0:03:00]} 4. Nxd4 {[%clk 0:03:01]}  g6 {[%clk 0:03:00]} 5. c4 {[%clk 0:03:01]}  Nf6 {[%clk 0:03:00]} 6. Nc3 {[%clk 0:03:01]}  d6 {[%clk 0:03:00]} 7. f3 {[%clk 0:03:01]}  Nxd4 {[%clk 0:02:57]} 8. Qxd4 {[%clk 0:03:02]}  Bg7 {[%clk 0:02:57]} 9. Be3 {[%clk 0:03:02]}  O-O {[%clk 0:02:57]} 10. Qd2 {[%clk 0:03:00]}  a5 {[%clk 0:02:56]} 11. Na4 {[%clk 0:02:57]}  Nd7 {[%clk 0:02:43]} 12. Be2 {[%clk 0:02:56]}  Qc7 {[%clk 0:02:42]} 13. O-O {[%clk 0:02:55]}  Nc5 {[%clk 0:02:42]} 14. Nc3 {[%clk 0:02:52]}  Bd7 {[%clk 0:02:34]} 15. b3 {[%clk 0:02:43]}  Bc6 {[%clk 0:02:33]} 16. Rac1 {[%clk 0:02:42]}  Qb6 {[%clk 0:02:25]} 17. Nd5 {[%clk 0:02:41]}  Bxd5 {[%clk 0:02:25]} 18. cxd5 {[%clk 0:02:38]}  Rfc8 {[%clk 0:02:20]} 19. Rc2 {[%clk 0:02:38]}  Qb4 {[%clk 0:02:08]} 20. Rfc1 {[%clk 0:02:36]}  Qxd2 {[%clk 0:02:06]} 21. Bxd2 {[%clk 0:02:36]}  Rcb8 {[%clk 0:01:45]} 22. Bb5 {[%clk 0:02:33]}  Bd4+ {[%clk 0:01:43]} 23. Kf1 {[%clk 0:02:32]}  Rd8 {[%clk 0:01:41]} 24. Ke2 {[%clk 0:02:31]}  Kg7 {[%clk 0:01:37]} 25. Rc4 {[%clk 0:02:29]}  Bb2 {[%clk 0:01:34]} 26. R1c2 {[%clk 0:02:27]}  Ba1 {[%clk 0:01:34]} 27. Bg5 {[%clk 0:02:06]}  Bf6 {[%clk 0:01:27]} 28. Be3 {[%clk 0:02:06]}  h6 {[%clk 0:01:26]} 29. f4 {[%clk 0:02:02]}  b6 {[%clk 0:01:19]} 30. Bc6 {[%clk 0:02:00]}  Ra7 {[%clk 0:01:14]} 31. Kf3 {[%clk 0:01:56]}  Rb8 {[%clk 0:01:13]} 32. Bb5 {[%clk 0:01:55]}  Raa8 {[%clk 0:01:09]} 33. g4 {[%clk 0:01:48]}  g5 {[%clk 0:01:09]} 34. h3 {[%clk 0:01:35]}  Rd8 {[%clk 0:01:00]} 35. Rc1 {[%clk 0:01:25]}  Rab8 {[%clk 0:01:00]} 36. Rb1 {[%clk 0:01:25]}  Rbc8 {[%clk 0:00:52]} 37. a3 {[%clk 0:01:22]}  gxf4 {[%clk 0:00:43]} 38. Bxf4 {[%clk 0:01:20]}  Bg5 {[%clk 0:00:19]} 39. Bg3 {[%clk 0:01:20]}  Nb7 {[%clk 0:00:13]} 40. Bc6 {[%clk 0:01:12]}  Nc5 {[%clk 0:00:11]} 41. Bf2 {[%clk 0:01:09]}  Nd3 {[%clk 0:00:09]} 42. Bxb6 {[%clk 0:01:06]}  Ne5+ {[%clk 0:00:09]} 43. Ke2 {[%clk 0:01:06]}  Nxc4 {[%clk 0:00:09]} 44. bxc4 {[%clk 0:01:07]}  Rb8 {[%clk 0:00:09]} 45. Rb5 {[%clk 0:01:05]}  Rdc8 {[%clk 0:00:09]} 46. Bxa5 {[%clk 0:00:59]}  Rxb5 {[%clk 0:00:08]} 47. cxb5 {[%clk 0:01:00]}  Bf6 {[%clk 0:00:07]} 48. b6 {[%clk 0:00:58]}  Bd4 {[%clk 0:00:06]} 49. b7 {[%clk 0:00:57]}  Rg8 {[%clk 0:00:06]} 50. Bc7 {[%clk 0:00:53]}  Ba7 {[%clk 0:00:05]} 51. a4 {[%clk 0:00:43]}  Kf6 {[%clk 0:00:05]} 52. a5 {[%clk 0:00:43]}  Ke5 {[%clk 0:00:05]} 53. Kf3 {[%clk 0:00:43]}  Bb8 {[%clk 0:00:02]} 54. Bxb8 {[%clk 0:00:42]}  Rxb8 {[%clk 0:00:02]} 55. a6 {[%clk 0:00:43]} 1-0


[Site "https://www.chess.com"]

[Event "Titled Tuesday Blitz May 31 Early 2022"]
[White "Al-Tarboush, Ward"]
[Black "Leiva, Gianmarco"]
[WhiteFideId "7601450"]
[BlackFideId "3804399"]
[WhiteElo "2294"]
[BlackElo "2323"]
[Result "1-0"]
[Round "09"]
[TimeControl "180+1"]
[Date "2022.05.31"]
[WhiteClock "0:00:45"]
[BlackClock "0:00:02"]

1. e4 {[%clk 0:02:59]}  c6 {[%clk 0:02:59]} 2. Nf3 {[%clk 0:02:59]}  d5 {[%clk 0:03:00]} 3. Nc3 {[%clk 0:02:59]}  dxe4 {[%clk 0:03:01]} 4. Nxe4 {[%clk 0:03:00]}  Nf6 {[%clk 0:03:01]} 5. Nxf6+ {[%clk 0:03:00]}  exf6 {[%clk 0:03:02]} 6. Bc4 {[%clk 0:03:00]}  Bd6 {[%clk 0:03:02]} 7. Qe2+ {[%clk 0:03:00]}  Qe7 {[%clk 0:03:03]} 8. Qxe7+ {[%clk 0:03:01]}  Kxe7 {[%clk 0:03:04]} 9. O-O {[%clk 0:03:00]}  Re8 {[%clk 0:03:04]} 10. Re1+ {[%clk 0:03:01]}  Kf8 {[%clk 0:03:05]} 11. Rxe8+ {[%clk 0:03:02]}  Kxe8 {[%clk 0:03:06]} 12. d4 {[%clk 0:03:02]}  Nd7 {[%clk 0:03:06]} 13. a4 {[%clk 0:02:58]}  Nb6 {[%clk 0:03:02]} 14. Bd3 {[%clk 0:02:58]}  Bg4 {[%clk 0:02:56]} 15. c4 {[%clk 0:02:54]}  Bxf3 {[%clk 0:02:54]} 16. gxf3 {[%clk 0:02:53]}  c5 {[%clk 0:02:44]} 17. d5 {[%clk 0:02:53]}  Nd7 {[%clk 0:02:37]} 18. a5 {[%clk 0:02:51]}  Ne5 {[%clk 0:02:29]} 19. Be2 {[%clk 0:02:51]}  Kd7 {[%clk 0:02:23]} 20. a6 {[%clk 0:02:48]}  b6 {[%clk 0:02:16]} 21. Ra3 {[%clk 0:02:40]}  Re8 {[%clk 0:02:15]} 22. Re3 {[%clk 0:02:40]}  Ng6 {[%clk 0:02:13]} 23. Bd3 {[%clk 0:02:37]}  Nh4 {[%clk 0:01:51]} 24. f4 {[%clk 0:02:32]}  Nf3+ {[%clk 0:01:24]} 25. Kh1 {[%clk 0:02:18]}  Nd4 {[%clk 0:01:09]} 26. Kg2 {[%clk 0:02:03]}  f5 {[%clk 0:00:46]} 27. Bd2 {[%clk 0:01:59]}  g6 {[%clk 0:00:44]} 28. Bb1 {[%clk 0:01:39]}  Re7 {[%clk 0:00:40]} 29. h3 {[%clk 0:01:33]}  Ne2 {[%clk 0:00:36]} 30. Kf3 {[%clk 0:01:20]}  Ng1+ {[%clk 0:00:33]} 31. Kg2 {[%clk 0:01:13]}  Ne2 {[%clk 0:00:34]} 32. Rf3 {[%clk 0:00:57]}  Re8 {[%clk 0:00:22]} 33. Bc2 {[%clk 0:00:53]}  h5 {[%clk 0:00:21]} 34. Ba4+ {[%clk 0:00:52]}  Kd8 {[%clk 0:00:04]} 35. Bxe8 {[%clk 0:00:52]}  Nd4 {[%clk 0:00:04]} 36. Re3 {[%clk 0:00:52]}  Bxf4 {[%clk 0:00:04]} 37. Bxf7 {[%clk 0:00:49]}  Bxe3 {[%clk 0:00:04]} 38. Bxe3 {[%clk 0:00:49]}  Nb3 {[%clk 0:00:01]} 39. Bxg6 {[%clk 0:00:49]}  Na5 {[%clk 0:00:02]} 40. Bg5+ {[%clk 0:00:47]}  Kc7 {[%clk 0:00:02]} 41. Bf4+ {[%clk 0:00:46]}  Kd8 {[%clk 0:00:03]} 42. d6 {[%clk 0:00:45]}  Nxc4 {[%clk 0:00:02]} 43. Bxf5 {[%clk 0:00:46]}  Nxd6 {[%clk 0:00:02]} 44. Bxd6 {[%clk 0:00:46]}  h4 {[%clk 0:00:02]} 45. Bb8 {[%clk 0:00:45]} 1-0


[Site "https://www.chess.com"]

[Event "Titled Tuesday Blitz May 31 Early 2022"]
[White "Ambartsumova, Karina"]
[Black "Meunier-Pion, Jean"]
[WhiteFideId "4166299"]
[BlackFideId "20685327"]
[WhiteElo "2262"]
[BlackElo "2124"]
[Result "0-1"]
[Round "09"]
[TimeControl "180+1"]
[Date "2022.06.01"]
[WhiteClock "0:00:03"]
[BlackClock "0:00:03"]

1. e4 {[%clk 0:03:00]}  c5 {[%clk 0:02:59]} 2. Nf3 {[%clk 0:03:00]}  d6 {[%clk 0:03:00]} 3. Bb5+ {[%clk 0:03:00]}  Nd7 {[%clk 0:03:00]} 4. c4 {[%clk 0:03:00]}  Nf6 {[%clk 0:03:00]} 5. O-O {[%clk 0:02:59]}  e6 {[%clk 0:02:57]} 6. d4 {[%clk 0:02:54]}  cxd4 {[%clk 0:02:56]} 7. Nxd4 {[%clk 0:02:55]}  Be7 {[%clk 0:02:56]} 8. Nc3 {[%clk 0:02:55]}  O-O {[%clk 0:02:56]} 9. Ba4 {[%clk 0:02:49]}  a6 {[%clk 0:02:53]} 10. Be3 {[%clk 0:02:47]}  Ne5 {[%clk 0:02:45]} 11. Bb3 {[%clk 0:02:36]}  Bd7 {[%clk 0:02:39]} 12. f3 {[%clk 0:02:30]}  Rc8 {[%clk 0:02:38]} 13. Qe2 {[%clk 0:02:09]}  Qa5 {[%clk 0:02:31]} 14. Rac1 {[%clk 0:02:03]}  Rfd8 {[%clk 0:02:28]} 15. Kh1 {[%clk 0:01:41]}  Be8 {[%clk 0:02:10]} 16. f4 {[%clk 0:01:27]}  Nc6 {[%clk 0:02:08]} 17. f5 {[%clk 0:01:19]}  Nxd4 {[%clk 0:01:09]} 18. Bxd4 {[%clk 0:01:20]}  Bd7 {[%clk 0:01:09]} 19. fxe6 {[%clk 0:01:12]}  fxe6 {[%clk 0:01:02]} 20. e5 {[%clk 0:01:10]}  dxe5 {[%clk 0:01:01]} 21. Bxe5 {[%clk 0:01:11]}  b5 {[%clk 0:00:56]} 22. Ne4 {[%clk 0:01:03]}  Nxe4 {[%clk 0:00:40]} 23. Qxe4 {[%clk 0:01:04]}  bxc4 {[%clk 0:00:34]} 24. Bc2 {[%clk 0:01:03]}  g6 {[%clk 0:00:32]} 25. Bc3 {[%clk 0:00:54]}  Qd5 {[%clk 0:00:32]} 26. Qf4 {[%clk 0:00:48]}  Rf8 {[%clk 0:00:29]} 27. Qh6 {[%clk 0:00:48]}  e5 {[%clk 0:00:19]} 28. Bxg6 {[%clk 0:00:43]}  hxg6 {[%clk 0:00:19]} 29. Qxg6+ {[%clk 0:00:44]}  Kh8 {[%clk 0:00:20]} 30. Qh5+ {[%clk 0:00:42]}  Kg8 {[%clk 0:00:20]} 31. Bxe5 {[%clk 0:00:40]}  Rf6 {[%clk 0:00:07]} 32. Rxf6 {[%clk 0:00:19]}  Bxf6 {[%clk 0:00:07]} 33. Qg6+ {[%clk 0:00:19]}  Kf8 {[%clk 0:00:07]} 34. Qxf6+ {[%clk 0:00:19]}  Qf7 {[%clk 0:00:08]} 35. Qh6+ {[%clk 0:00:15]}  Ke7 {[%clk 0:00:08]} 36. Bd6+ {[%clk 0:00:14]}  Kd8 {[%clk 0:00:08]} 37. Qg5+ {[%clk 0:00:12]}  Ke8 {[%clk 0:00:08]} 38. Re1+ {[%clk 0:00:13]}  Be6 {[%clk 0:00:09]} 39. h3 {[%clk 0:00:10]}  Kd7 {[%clk 0:00:09]} 40. Qe5 {[%clk 0:00:09]}  Qf5 {[%clk 0:00:07]} 41. Qd4 {[%clk 0:00:08]}  Bd5 {[%clk 0:00:07]} 42. Bh2 {[%clk 0:00:06]}  Kc6 {[%clk 0:00:05]} 43. Bg1 {[%clk 0:00:03]}  Qxh3+ {[%clk 0:00:02]} 44. Bh2 {[%clk 0:00:03]}  Qxg2# {[%clk 0:00:03]} 0-1


[Site "https://www.chess.com"]

[Event "Titled Tuesday Blitz May 31 Early 2022"]
[White "Andreikin, Dmitry"]
[Black "Martinez Alcantara, Jose Eduardo"]
[WhiteFideId "4158814"]
[BlackFideId "3805662"]
[WhiteElo "2736"]
[BlackElo "2690"]
[Result "1/2-1/2"]
[Round "09"]
[TimeControl "180+1"]
[Date "2022.05.31"]
[WhiteClock "0:01:47"]
[BlackClock "0:02:08"]

1. Nf3 {[%clk 0:03:00]}  Nf6 {[%clk 0:02:58]} 2. c4 {[%clk 0:03:01]}  e6 {[%clk 0:02:58]} 3. g3 {[%clk 0:03:00]}  b6 {[%clk 0:02:58]} 4. Bg2 {[%clk 0:03:00]}  Bb7 {[%clk 0:02:58]} 5. d4 {[%clk 0:03:00]}  Bb4+ {[%clk 0:02:56]} 6. Bd2 {[%clk 0:02:59]}  c5 {[%clk 0:02:54]} 7. Bxb4 {[%clk 0:02:58]}  cxb4 {[%clk 0:02:55]} 8. O-O {[%clk 0:02:58]}  a5 {[%clk 0:02:56]} 9. a3 {[%clk 0:02:56]}  Na6 {[%clk 0:02:56]} 10. Qd3 {[%clk 0:02:52]}  O-O {[%clk 0:02:46]} 11. Nbd2 {[%clk 0:02:52]}  d6 {[%clk 0:02:46]} 12. Rfc1 {[%clk 0:02:50]}  Qe7 {[%clk 0:02:45]} 13. e3 {[%clk 0:02:48]}  e5 {[%clk 0:02:42]} 14. Nh4 {[%clk 0:02:39]}  Bxg2 {[%clk 0:02:38]} 15. Kxg2 {[%clk 0:02:32]}  g6 {[%clk 0:02:37]} 16. Kg1 {[%clk 0:02:27]}  Rfe8 {[%clk 0:02:37]} 17. Ng2 {[%clk 0:02:18]}  Qe6 {[%clk 0:02:26]} 18. Ne1 {[%clk 0:02:11]}  h5 {[%clk 0:02:09]} 19. h4 {[%clk 0:01:56]}  Kg7 {[%clk 0:02:08]} 20. Rc2 {[%clk 0:01:47]} 1/2-1/2


[Site "https://www.chess.com"]

[Event "Titled Tuesday Blitz May 31 Early 2022"]
[White "Bekturov, Tamerlan"]
[Black "Salinas Herrera, Pablo"]
[WhiteFideId "13710184"]
[BlackFideId "3407128"]
[WhiteElo "2151"]
[BlackElo "2541"]
[Result "1-0"]
[Round "09"]
[TimeControl "180+1"]
[Date "2022.06.01"]
[WhiteClock "0:00:03"]
[BlackClock "0:00:02"]

1. d4 {[%clk 0:02:58]}  d5 {[%clk 0:02:59]} 2. c4 {[%clk 0:02:56]}  e6 {[%clk 0:02:56]} 3. Nf3 {[%clk 0:02:55]}  Nf6 {[%clk 0:02:55]} 4. g3 {[%clk 0:02:55]}  g6 {[%clk 0:02:52]} 5. Bg2 {[%clk 0:02:54]}  Bg7 {[%clk 0:02:53]} 6. O-O {[%clk 0:02:54]}  O-O {[%clk 0:02:54]} 7. b3 {[%clk 0:02:45]}  c5 {[%clk 0:02:53]} 8. Bb2 {[%clk 0:02:44]}  cxd4 {[%clk 0:02:53]} 9. cxd5 {[%clk 0:02:44]}  Nxd5 {[%clk 0:02:50]} 10. Nxd4 {[%clk 0:02:43]}  e5 {[%clk 0:02:23]} 11. Nb5 {[%clk 0:02:39]}  Be6 {[%clk 0:02:13]} 12. e4 {[%clk 0:02:32]}  Nb4 {[%clk 0:02:13]} 13. Qxd8 {[%clk 0:02:19]}  Rxd8 {[%clk 0:02:14]} 14. Nc7 {[%clk 0:02:19]}  Nc2 {[%clk 0:02:14]} 15. Nxa8 {[%clk 0:02:19]}  Nxa1 {[%clk 0:02:13]} 16. Nc7 {[%clk 0:02:16]}  Nc2 {[%clk 0:02:12]} 17. Nxe6 {[%clk 0:02:14]}  fxe6 {[%clk 0:02:13]} 18. Bh3 {[%clk 0:02:08]}  Kf7 {[%clk 0:02:09]} 19. Rc1 {[%clk 0:02:08]}  Nd4 {[%clk 0:02:08]} 20. Rc7+ {[%clk 0:02:06]}  Rd7 {[%clk 0:02:08]} 21. Rc8 {[%clk 0:02:07]}  Nbc6 {[%clk 0:02:06]} 22. Nc3 {[%clk 0:01:50]}  Nb4 {[%clk 0:01:27]} 23. Ba3 {[%clk 0:01:41]}  Nd3 {[%clk 0:01:18]} 24. Nd5 {[%clk 0:01:16]}  Nf3+ {[%clk 0:01:07]} 25. Kg2 {[%clk 0:01:15]}  Ng5 {[%clk 0:01:03]} 26. Nc3 {[%clk 0:00:37]}  Ne1+ {[%clk 0:01:00]} 27. Kf1 {[%clk 0:00:36]}  Nc2 {[%clk 0:01:00]} 28. Bc1 {[%clk 0:00:30]}  Nxh3 {[%clk 0:00:59]} 29. Kg2 {[%clk 0:00:30]}  Nxf2 {[%clk 0:00:23]} 30. Kxf2 {[%clk 0:00:31]}  Nb4 {[%clk 0:00:21]} 31. Ba3 {[%clk 0:00:24]}  Nc6 {[%clk 0:00:19]} 32. Bc1 {[%clk 0:00:20]}  Bf8 {[%clk 0:00:18]} 33. Be3 {[%clk 0:00:18]}  Nd4 {[%clk 0:00:17]} 34. Na4 {[%clk 0:00:11]}  b6 {[%clk 0:00:15]} 35. Nb2 {[%clk 0:00:11]}  Bg7 {[%clk 0:00:11]} 36. Nc4 {[%clk 0:00:10]}  h5 {[%clk 0:00:12]} 37. Bxd4 {[%clk 0:00:07]}  exd4 {[%clk 0:00:12]} 38. e5 {[%clk 0:00:06]}  d3 {[%clk 0:00:11]} 39. Nd6+ {[%clk 0:00:06]}  Rxd6 {[%clk 0:00:07]} 40. exd6 {[%clk 0:00:07]}  Bd4+ {[%clk 0:00:05]} 41. Ke1 {[%clk 0:00:03]}  Bf6 {[%clk 0:00:02]} 42. d7 {[%clk 0:00:03]} 1-0


[Site "https://www.chess.com"]